bitfinex/quotes_SOLUSD_20250708
["timestamp","ask_amount","ask_price","bid_price","bid_amount"]
[1752016809991,6.58938525,151.76,151.72,4.01138335]
[1752016810202,7.41387422,151.75,151.72,4.01138335]
[1752016810506,7.41387422,151.74,151.72,4.01138335]
[1752016810687,6.58938525,151.76,151.72,4.01138335]
[1752016810878,7.41465502,151.75,151.72,4.01138335]
[1752016811075,7.41465502,151.74,151.72,4.01138335]
[1752016811295,6.58938525,151.76,151.72,4.01138335]
[1752016811490,7.41487838,151.75,151.72,4.01138335]
[1752016811699,7.41487838,151.74,151.72,4.01138335]
[1752016811903,10.6007686,151.76,151.72,4.01138335]
[1752016812106,7.41487838,151.75,151.71,5.58908335]
[1752016812271,7.41487838,151.74,151.71,5.58908335]
[1752016812472,10.6007686,151.76,151.71,5.58908335]
[1752016812791,7.41464368,151.75,151.71,5.58908335]
[1752016812992,7.41464368,151.74,151.71,5.58908335]
[1752016813175,10.6007686,151.76,151.71,5.58908335]
[1752016813374,14.00443863,151.75,151.71,5.58908335]
[1752016813576,7.41465271,151.74,151.71,5.58908335]
[1752016813896,6.58978592,151.75,151.71,5.58908335]
[1752016814087,7.41448969,151.74,151.71,5.58908335]
[1752016814289,6.58978592,151.75,151.71,5.58908335]
[1752016814471,7.41417354,151.74,151.71,5.58908335]
[1752016814671,6.58978592,151.75,151.71,5.58908335]
[1752016814868,7.41417354,151.74,151.71,5.58908335]
[1752016815094,6.58978592,151.75,151.71,5.58908335]
[1752016815301,7.41416395,151.74,151.72,4.01138335]
[1752016815494,6.58978592,151.75,151.72,4.01138335]
[1752016815797,7.414023,151.74,151.72,4.01138335]
[1752016815997,6.58978592,151.75,151.72,4.01138335]
[1752016816202,7.41402349,151.74,151.72,4.01138335]
[1752016816384,6.58978592,151.75,151.72,4.01138335]
[1752016816588,7.41397748,151.74,151.72,4.01138335]
[1752016816883,6.58978592,151.75,151.72,4.01138335]
[1752016817088,7.41397748,151.74,151.72,4.01138335]
[1752016817271,6.58978592,151.75,151.72,4.01138335]
[1752016817476,7.41392736,151.74,151.72,4.01138335]
[1752016817706,6.58978592,151.75,151.72,4.01138335]
[1752016817909,7.41392736,151.74,151.72,4.01138335]
[1752016818094,6.58978592,151.75,151.72,4.01138335]
[1752016818291,7.41400667,151.74,151.72,4.01138335]
[1752016818492,6.64978592,151.75,151.72,4.01138335]
[1752016818690,7.41388729,151.74,151.72,4.01138335]
[1752016818892,6.64978592,151.75,151.72,4.01138335]
[1752016819095,7.41388729,151.74,151.72,4.01138335]
[1752016819417,6.64978592,151.75,151.72,4.01138335]
[1752016819584,7.41370314,151.74,151.72,4.01138335]
[1752016819783,6.64978592,151.75,151.72,4.01138335]
[1752016819986,7.41370324,151.74,151.72,4.01138335]
[1752016820185,6.64978592,151.75,151.72,4.01138335]
[1752016820380,7.41362388,151.74,151.72,4.01138335]
[1752016820586,7.41362388,151.74,151.71,1.5777]
[1752016820797,0.06,151.75,151.73,4.01138335]
[1752016820995,0.06,151.75,151.74,4.01138335]
[1752016822497,0.06,151.75,151.74,56.81445232]
[1752016823096,0.06,151.75,151.74,72.85998572]
[1752016823302,0.06,151.75,151.74,79.18798572]
[1752016827106,0.06,151.75,151.74,79.84700773]
[1752016831593,0.06,151.75,151.74,142.14700773]
[1752016831812,0.06,151.75,151.74,141.48798572]
[1752016834307,1e-08,151.75,151.74,53.47230886]
[1752016834490,0.06,151.77,151.76,44.64964886]
[1752016834691,0.06,151.77,151.76,145.12429051]
[1752016834886,0.06,151.77,151.76,140.453972]
[1752016835305,0.06,151.77,151.76,160.4582025]
[1752016835712,0.06,151.77,151.76,167.0475541]
[1752016840020,0.06,151.77,151.76,172.27154041]
[1752016840323,0.06,151.77,151.76,83.97154041]
[1752016840512,0.06,151.77,151.76,84.63047557]
[1752016841728,0.06,151.77,151.76,79.12216612]
[1752016846428,0.06,151.77,151.76,167.42216612]
[1752016846630,0.06,151.77,151.76,166.76323096]
[1752016847804,0.06,151.77,151.76,167.0475541]
[1752016852330,0.06,151.77,151.76,78.7475541]
[1752016852507,0.06,151.77,151.76,79.40648926]
[1752016853537,0.06,151.77,151.76,82.75124114]
[1752016855227,0.06,151.77,151.76,171.05124114]
[1752016855435,0.06,151.77,151.76,170.39230598]
[1752016855734,0.06,151.77,151.76,171.95750598]
[1752016857330,0.06,151.77,151.76,181.95750598]
[1752016858026,0.06,151.77,151.76,171.95750598]
[1752016858332,0.06,151.77,151.76,181.95750598]
[1752016861632,0.06,151.77,151.76,171.95750598]
[1752016861944,0.06,151.77,151.76,181.95750598]
[1752016862927,0.06,151.77,151.76,171.95750598]
[1752016864456,0.06,151.77,151.76,138.73750598]
[1752016864746,0.06,151.77,151.76,171.93750598]
[1752016867140,0.06,151.77,151.76,135.3927541]
[1752016867342,0.06,151.77,151.75,0.03]
[1752016867525,0.06,151.77,151.76,33.2]
[1752016867725,0.06,151.77,151.76,97.85387936]
[1752016868326,0.06,151.77,151.76,81.85049496]
[1752016868623,0.06,151.77,151.76,88.43984656]
[1752016870823,0.06,151.77,151.76,104.44323096]
[1752016875854,0.06,151.77,151.76,88.43984656]
[1752016879042,0.06,151.77,151.76,81.85049496]
[1752016879438,0.06,151.77,151.76,30.0008461]
[1752016879637,0.06,151.77,151.76,63.2008461]
[1752016881336,0.06,151.77,151.76,30.0008461]
[1752016881548,0.06,151.77,151.76,63.2008461]
[1752016882253,0.06,151.77,151.76,69.7901977]
[1752016883247,0.06,151.77,151.76,65.7893516]
[1752016883540,0.06,151.77,151.76,69.7901977]
[1752016884265,0.06,151.77,151.76,65.7893516]
[1752016884439,0.06,151.77,151.76,69.7901977]
[1752016886960,0.06,151.77,151.76,36.5901977]
[1752016887138,0.06,151.77,151.76,69.7901977]
[1752016903876,0.06,151.77,151.76,65.7893516]
[1752016904078,0.06,151.77,151.76,69.7901977]
[1752016904798,0.06,151.77,151.76,36.5901977]
[1752016905095,0.06,151.77,151.76,26.0]
[1752016905403,0.06,151.77,151.76,59.2]
[1752016905576,0.06,151.77,151.76,26.0]
[1752016905782,0.06,151.77,151.76,59.2]
[1752016906476,0.06,151.77,151.76,63.2008461]
[1752016906682,0.06,151.77,151.76,69.7901977]
[1752016909191,0.06,151.77,151.76,63.2008461]
[1752016909389,0.06,151.77,151.76,59.2]
[1752016911079,0.06,151.77,151.76,33.2]
[1752016911486,0.06,151.77,151.75,26.03]
[1752016911689,0.06,151.77,151.76,33.2]
[1752016915191,0.06,151.77,151.75,0.03]
[1752016915512,0.06,151.77,151.76,33.2]
[1752016915804,0.06,151.77,151.75,33.23]
[1752016916582,4.0008461,151.76,151.75,0.03]
[1752016916786,6.1534,151.77,151.75,0.03]
[1752016917004,4.0008461,151.76,151.75,0.03]
[1752016917410,11.39989069,151.76,151.75,0.03]
[1752016918199,4.0008461,151.76,151.75,0.03]
[1752016920920,10.87452084,151.76,151.75,0.03]
[1752016921205,18.27153591,151.76,151.75,0.03]
[1752016922209,4.0008461,151.7,151.66,33.2]
[1752016922382,0.28432314,151.7,151.63,1e-08]
[1752016922587,0.28432314,151.7,151.63,4.00084611]
[1752016922588,4.0008461,151.67,151.63,4.00084611]
[1752016922889,4.0008461,151.66,151.63,1e-08]
[1752016924316,4.0008461,151.67,151.63,1e-08]
[1752016924815,6.26765879,151.67,151.63,1e-08]
[1752016926592,6.5718,151.7,151.63,1e-08]
[1752016926798,6.26765879,151.68,151.64,6.26765879]
[1752016927812,12.86005116,151.69,151.64,6.26765879]
[1752016928111,12.86005116,151.69,151.64,12.86209282]
[1752016928313,13.12378193,151.7,151.66,6.26765879]
[1752016928610,1.6153,151.71,151.69,6.26765879]
[1752016928807,147.5,151.73,151.7,6.26765879]
[1752016929109,6.1913,151.74,151.7,6.26765879]
[1752016929110,12.78152196,151.74,151.7,6.26765879]
[1752016929501,19.04918075,151.74,151.7,6.26765879]
[1752016929699,6.26765879,151.72,151.68,39.50765879]
[1752016930108,12.85900028,151.72,151.68,33.24]
[1752016931100,6.26765879,151.71,151.68,33.24]
[1752016931709,6.59134149,151.72,151.64,6.26765879]
[1752016931710,6.26765879,151.69,151.64,6.26765879]
[1752016931904,6.26765879,151.68,151.64,39.50765879]
[1752016932095,6.26765879,151.68,151.64,39.83448107]
[1752016933319,6.26765879,151.67,151.64,39.83448107]
[1752016933817,147.5,151.73,151.66,6.26765879]
[1752016934113,147.5,151.73,151.69,6.26765879]
[1752016934326,6.26765879,151.72,151.67,33.28]
[1752016934520,6.26765879,151.72,151.67,39.54765879]
[1752016934820,6.26765879,151.72,151.67,33.28]
[1752016934998,6.26765879,151.72,151.68,6.26765879]
[1752016935795,153.76765879,151.73,151.68,12.86035876]
[1752016936807,153.76765879,151.73,151.69,6.26765879]
[1752016937021,153.76765879,151.73,151.68,6.59269997]
[1752016937315,160.35838472,151.73,151.68,12.86035876]
[1752016937529,6.26765879,151.71,151.67,6.59317101]
[1752016937903,6.55198193,151.72,151.67,12.8608298]
[1752016938102,160.35869021,151.73,151.68,6.26765879]
[1752016940499,6.55198193,151.72,151.67,6.59317101]
[1752016940816,6.55198193,151.72,151.67,12.8608298]
[1752016942120,13.14321783,151.72,151.67,12.8608298]
[1752016944427,0.28432314,151.72,151.68,6.26765879]
[1752016945124,6.87545201,151.72,151.68,6.26765879]
[1752016945425,0.28432314,151.72,151.68,12.86048538]
[1752016945930,0.28432314,151.72,151.68,6.26765879]
[1752016946312,6.87544943,151.72,151.68,6.26765879]
[1752016947229,0.14216157,151.72,151.68,6.26765879]
[1752016947431,147.5,151.73,151.69,6.26765879]
[1752016949323,153.76765879,151.73,151.68,12.86035637]
[1752016949531,160.35832358,151.73,151.68,12.86035637]
[1752016949835,12.85832358,151.73,151.68,12.86035637]
[1752016955630,6.59066479,151.73,151.69,6.26765879]
[1752016956722,19.04935676,151.74,151.69,6.26765879]
[1752016956957,19.04935676,151.74,151.67,39.87326168]
[1752016957235,19.04935676,151.74,151.69,6.26765879]
[1752016957611,19.04935676,151.74,151.67,39.87326168]
[1752016957826,19.04935676,151.74,151.69,6.26765879]
[1752016958435,19.04935676,151.74,151.68,6.59247342]
[1752016958639,19.04935676,151.74,151.69,6.26765879]
[1752016962508,12.85858824,151.73,151.68,6.59247342]
[1752016962750,12.85858824,151.73,151.69,6.26765879]
[1752016962919,12.78179806,151.74,151.69,6.26765879]
[1752016963242,19.04945685,151.74,151.69,6.26765879]
[1752016963538,19.04945685,151.74,151.68,6.59247342]
[1752016963732,19.04945685,151.74,151.69,6.26765879]
[1752016966542,13.98731732,151.73,151.69,6.26765879]
[1752016967546,20.25497611,151.73,151.69,6.26765879]
[1752016967847,12.85837631,151.73,151.69,6.26765879]
[1752016970863,10.59873996,151.73,151.69,4.00802244]
[1752016971986,10.59873996,151.73,151.69,4.03802244]
[1752016972164,7.40367495,151.72,151.69,0.03]
[1752016973443,13.99485404,151.72,151.69,0.03]
[1752016973835,13.99485404,151.72,151.69,4.03802244]
[1752016974022,7.40367495,151.72,151.7,4.00802244]
[1752016974229,10.19932244,151.74,151.69,4.03802244]
[1752016974431,7.40859656,151.73,151.69,4.03802244]
[1752016974629,7.40874335,151.72,151.69,4.03802244]
[1752016975340,6.59067158,151.73,151.7,4.00802244]
[1752016976270,13.99963067,151.73,151.7,4.00802244]
[1752016976582,0.06,151.75,151.72,4.00802244]
[1752016976866,7.40817892,151.74,151.72,4.00802244]
[1752016978459,7.40817892,151.74,151.69,6.62239237]
[1752016978660,7.40817892,151.73,151.69,4.03802244]
[1752016978850,12.85260902,151.74,151.69,6.29237565]
[1752016979165,7.41024547,151.73,151.69,6.29237565]
[1752016979366,12.85260902,151.74,151.69,6.29237565]
[1752016979557,12.85260902,151.74,151.7,6.26237565]
[1752016979558,14.00220771,151.73,151.7,6.26237565]
[1752016979763,6.59071247,151.73,151.7,6.26237565]
[1752016980061,20.26374133,151.74,151.7,6.26237565]
[1752016980278,20.26374133,151.74,151.69,0.03]
[1752016980279,7.41200302,151.73,151.69,0.03]
[1752016980575,6.59039096,151.74,151.7,6.26237565]
[1752016980755,7.41215288,151.73,151.7,6.26237565]
[1752016980954,6.59039096,151.74,151.7,6.26237565]
[1752016981178,7.41214986,151.73,151.7,6.26237565]
[1752016981366,6.59039096,151.74,151.7,6.26237565]
[1752016981569,7.41207761,151.73,151.7,6.26237565]
[1752016981863,6.59039096,151.74,151.7,6.26237565]
[1752016982061,7.41207761,151.73,151.7,6.26237565]
[1752016982243,6.59039096,151.74,151.7,6.26237565]
[1752016982441,7.41198533,151.73,151.7,6.26237565]
[1752016982663,6.59039096,151.74,151.7,6.26237565]
[1752016982857,14.00265333,151.73,151.7,6.26237565]
[1752016983060,6.59066319,151.73,151.7,6.26237565]
[1752016984154,6.87454325,151.74,151.7,6.26237565]
[1752016984356,7.41223981,151.73,151.7,6.26237565]
[1752016984558,6.87454325,151.74,151.7,6.26237565]
[1752016984777,7.41226149,151.73,151.7,6.26237565]
[1752016984966,6.87454325,151.74,151.7,6.26237565]
[1752016985164,13.67463714,151.73,151.69,0.03]
[1752016985368,7.41264434,151.72,151.69,6.29237565]
[1752016985682,6.26237565,151.73,151.69,6.29237565]
[1752016985850,7.41283999,151.72,151.69,6.29237565]
[1752016986046,6.26237565,151.73,151.69,6.29237565]
[1752016986261,6.87454325,151.74,151.69,6.29237565]
[1752016986262,14.00442331,151.72,151.69,6.29237565]
[1752016986458,6.59079202,151.73,151.69,6.29237565]
[1752016986661,7.41337135,151.72,151.69,6.29237565]
[1752016986856,6.54669879,151.72,151.69,0.03]
[1752016987049,7.4138698,151.71,151.69,0.03]
[1752016987382,6.54669879,151.72,151.69,0.03]
[1752016987383,0.28432314,151.72,151.69,0.03]
[1752016987550,7.41390171,151.71,151.69,0.03]
[1752016987752,0.28432314,151.72,151.69,0.03]
[1752016988064,7.41390171,151.71,151.69,0.03]
[1752016988246,6.59159137,151.71,151.69,0.03]
[1752016988675,7.41384555,151.7,151.69,0.03]
[1752016988976,6.59159137,151.71,151.69,0.03]
[1752016991761,7.41281239,151.7,151.69,0.03]
[1752016994273,6.59159137,151.71,151.69,0.03]
[1752016996563,12.85396702,151.71,151.69,0.03]
[1752016998980,10.60085511,151.71,151.69,0.03]
[1752017000286,6.59159137,151.71,151.69,0.03]
[1752017005190,6.87553455,151.72,151.69,4.03926374]
[1752017008491,14.28266945,151.72,151.69,4.03926374]
[1752017009895,14.28266945,151.72,151.69,0.03]
[1752017013203,14.28266945,151.72,151.69,4.03926374]
[1752017013901,14.28266945,151.72,151.69,0.03]
[1752017014099,14.28266945,151.72,151.69,4.03926374]
[1752017018901,7.4071349,151.71,151.69,0.03]
[1752017020206,6.87553455,151.72,151.69,0.03]
[1752017020380,7.40823992,151.71,151.69,0.03]
[1752017021994,26.0,151.67,151.66,0.03]
[1752017022193,26.0,151.67,151.63,1e-08]
[1752017022194,44.64964886,151.64,151.63,1e-08]
[1752017022374,122.89147566,151.64,151.63,1e-08]
[1752017023187,129.48604173,151.64,151.63,1e-08]
[1752017023804,132.07780181,151.64,151.63,1e-08]
[1752017024522,122.07780181,151.64,151.63,1e-08]
[1752017024689,132.07780181,151.64,151.63,1e-08]
[1752017024894,134.34385864,151.64,151.63,1e-08]
[1752017025903,51.52853807,151.64,151.63,1e-08]
[1752017026094,91.10385864,151.64,151.63,1e-08]
[1752017026609,90.96169707,151.64,151.63,1e-08]
[1752017026914,91.10385864,151.64,151.63,1e-08]
[1752017027588,84.82853807,151.64,151.63,1e-08]
[1752017027789,12.86988664,151.64,151.63,1e-08]
[1752017028012,13.15420978,151.64,151.63,1e-08]
[1752017028216,6.87888921,151.64,151.63,1e-08]
[1752017029806,0.28432314,151.64,151.63,1e-08]
[1752017030004,0.14216157,151.65,151.63,6.27532058]
[1752017030303,0.28432314,151.65,151.63,6.27532058]
[1752017030604,147.5,151.66,151.64,6.27532057]
[1752017030802,39.93338774,151.67,151.64,6.27532057]
[1752017030803,6.59338774,151.67,151.64,6.27532057]
[1752017034505,6.59338774,151.67,151.63,6.27532058]
[1752017036416,12.86870831,151.67,151.63,6.27532058]
[1752017036597,12.92870831,151.67,151.63,6.27532058]
[1752017038596,12.92870831,151.67,151.63,1e-08]
[1752017038792,12.92870831,151.67,151.63,6.27532058]
[1752017040394,6.55964371,151.66,151.63,1e-08]
[1752017041108,0.28432314,151.66,151.63,1e-08]
[1752017041605,6.59413122,151.65,151.63,1e-08]
[1752017050010,6.55964371,151.64,151.63,1e-08]
[1752017051333,6.87888921,151.64,151.63,1e-08]
[1752017060323,6.59456607,151.64,151.63,1e-08]
[1752017062061,6.87845436,151.65,151.63,1e-08]
[1752017064344,6.59413122,151.65,151.63,1e-08]
[1752017064514,6.6538633,151.66,151.63,6.26859863]
[1752017065535,6.6538633,151.66,151.64,6.26859862]
[1752017068023,0.06,151.66,151.64,6.26859862]
[1752017070648,0.06,151.66,151.65,6.26859862]
[1752017071234,0.06,151.66,151.65,12.86272984]
[1752017077137,0.06,151.66,151.65,31.5123787]
[1752017078039,0.06,151.66,151.65,64.8123787]
[1752017078564,0.06,151.66,151.65,73.46909182]
[1752017079648,0.06,151.66,151.65,72.8096787]
[1752017080649,0.06,151.66,151.65,66.54108008]
[1752017081656,0.06,151.66,151.65,66.57108008]
[1752017086353,0.06,151.66,151.65,60.15708008]
[1752017087759,0.06,151.66,151.65,60.17708008]
[1752017088260,0.06,151.66,151.65,41.52743122]
[1752017088468,0.06,151.66,151.65,34.9333]
[1752017090462,0.06,151.66,151.65,41.52743122]
[1752017094438,0.06,151.66,151.65,8.22743122]
[1752017094640,0.06,151.66,151.65,41.50743122]
[1752017095240,0.06,151.66,151.65,39.90413122]
[1752017096562,0.06,151.66,151.65,42.35025062]
[1752017098545,0.06,151.66,151.65,39.90413122]
[1752017099583,0.06,151.66,151.65,42.35110648]
[1752017100463,0.06,151.66,151.65,42.33110648]
[1752017100640,0.06,151.66,151.65,39.88413122]
[1752017102451,0.06,151.66,151.65,0.03]
[1752017102653,0.06,151.66,151.65,33.29]
[1752017102846,0.06,151.66,151.65,0.03]
[1752017103073,0.06,151.66,151.65,33.29]
[1752017104262,0.06,151.66,151.65,43.89295975]
[1752017112785,6.59188256,151.71,151.65,43.89295975]
[1752017112962,6.59188256,151.71,151.67,4.00882853]
[1752017113164,4.29315167,151.7,151.65,10.6329499]
[1752017113493,4.00882853,151.69,151.65,26.03]
[1752017113693,4.29315167,151.7,151.66,33.24]
[1752017115159,6.59188256,151.71,151.65,0.03]
[1752017115160,0.28432314,151.68,151.65,0.03]
[1752017115953,4.29315167,151.68,151.65,0.03]
[1752017116592,5.52692853,151.67,151.65,0.03]
[1752017116779,1.5181,151.67,151.65,0.03]
[1752017118684,8.11159944,151.67,151.65,0.03]
[1752017128394,12.12042797,151.67,151.65,0.03]
[1752017128578,0.28432314,151.66,151.65,0.03]
[1752017128784,4.29315167,151.66,151.65,0.03]
[1752017130296,10.88684809,151.66,151.65,0.03]
[1752017130501,0.28432314,151.66,151.65,0.03]
[1752017131993,6.87801956,151.66,151.65,0.03]
[1752017142002,9.34206125,151.66,151.65,0.03]
[1752017145506,6.87801956,151.66,151.65,0.03]
[1752017145804,9.34232489,151.66,151.65,0.03]
[1752017146494,9.34239967,151.66,151.65,0.03]
[1752017147307,13.3512282,151.66,151.65,0.03]
[1752017149209,32.00087706,151.66,151.65,0.03]
[1752017149515,65.26143209,151.66,151.65,0.03]
[1752017158123,62.79649695,151.66,151.65,0.03]
[1752017158298,65.26579073,151.66,151.65,0.03]
[1752017160200,9.34731334,151.66,151.65,0.03]
[1752017160402,2.46929378,151.66,151.65,4.03882853]
[1752017160609,2.46929378,151.66,151.65,0.03]
[1752017160914,2.46929378,151.66,151.65,4.03882853]
[1752017166627,2.46812089,151.66,151.65,4.03882853]
[1752017180229,2.46812089,151.66,151.65,32.62413122]
[1752017180434,0.06,151.67,151.65,4.03882853]
[1752017180942,2.46529874,151.66,151.65,4.03882853]
[1752017181115,2.46530046,151.66,151.65,4.03882853]
[1752017181312,2.46530046,151.66,151.65,0.03]
[1752017187140,2.4655928,151.66,151.65,0.03]
[1752017187528,2.74991594,151.66,151.65,0.03]
[1752017188343,6.75874447,151.66,151.65,0.03]
[1752017188641,13.35244089,151.66,151.65,0.03]
[1752017189919,32.00208975,151.66,151.65,0.03]
[1752017191945,29.53649695,151.66,151.65,0.03]
[1752017198051,32.0013364,151.66,151.65,0.03]
[1752017198433,18.933972,151.65,151.63,1e-08]
[1752017198634,40.01799112,151.64,151.63,1e-08]
[1752017201152,46.61255719,151.64,151.63,1e-08]
[1752017201748,13.35255719,151.64,151.63,1e-08]
[1752017201948,9.34372866,151.64,151.63,1e-08]
[1752017203430,2.46483945,151.64,151.63,4.00882854]
[1752017206049,147.5,151.66,151.63,4.00882854]
[1752017206262,2.46397787,151.65,151.63,1e-08]
[1752017206557,147.5,151.66,151.64,4.00882853]
[1752017206765,2.46404388,151.65,151.63,1e-08]
[1752017207057,2.46404388,151.64,151.63,1e-08]
[1752017207845,2.46404388,151.64,151.63,4.00882854]
[1752017210562,2.46437278,151.64,151.63,4.00882854]
[1752017212238,2.46445651,151.64,151.63,4.00882854]
[1752017216470,2.46518276,151.64,151.63,4.00882854]
[1752017219162,2.46518276,151.64,151.63,1e-08]
[1752017219371,2.46518276,151.64,151.63,4.00882854]
[1752017222063,2.46603689,151.64,151.63,4.00882854]
[1752017227473,2.46603689,151.64,151.63,1e-08]
[1752017227682,2.46603689,151.64,151.63,4.00882854]
[1752017229381,2.46730542,151.64,151.63,4.00882854]
[1752017230281,2.46730542,151.64,151.63,1e-08]
[1752017230484,2.46730542,151.64,151.63,4.00882854]
[1752017241795,2.46730542,151.64,151.63,10.60382952]
[1752017243226,2.46730542,151.64,151.63,64.04137838]
[1752017245016,0.06,151.65,151.63,64.04137838]
[1752017245235,0.06,151.65,151.64,4.00882853]
[1752017245436,2.52990074,151.65,151.64,4.00882853]
[1752017246140,2.52990074,151.65,151.64,10.6033946]
[1752017247623,2.52990074,151.65,151.64,4.00882853]
[1752017253146,2.52990074,151.65,151.63,4.00882854]
[1752017253453,2.46990074,151.64,151.63,4.00882854]
[1752017253639,2.46990074,151.64,151.63,1e-08]
[1752017253821,2.46990074,151.64,151.63,4.00882854]
[1752017254222,2.46990074,151.64,151.63,1e-08]
[1752017254829,2.46990074,151.64,151.63,4.00882854]
[1752017265160,2.47121911,151.64,151.63,4.00882854]
[1752017267960,2.47121911,151.64,151.63,1e-08]
[1752017267961,9.06578518,151.64,151.63,1e-08]
[1752017273152,9.06578518,151.64,151.63,4.00882854]
[1752017276363,9.06578518,151.64,151.63,1e-08]
[1752017279867,6.59456607,151.64,151.63,1e-08]
[1752017280064,9.06438088,151.64,151.63,1e-08]
[1752017287864,6.65413122,151.65,151.63,1e-08]
[1752017288167,2.4693283,151.64,151.63,1e-08]
[1752017288979,9.06389437,151.64,151.63,1e-08]
[1752017299770,9.06730284,151.64,151.63,1e-08]
[1752017309710,9.06812917,151.64,151.63,1e-08]
[1752017314378,9.35245231,151.64,151.63,1e-08]
[1752017315081,13.36128084,151.64,151.63,1e-08]
[1752017316502,32.0109297,151.64,151.63,1e-08]
[1752017316710,18.933972,151.63,151.6,0.2]
[1752017316887,4.00882853,151.61,151.6,0.2]
[1752017317089,6.48239163,151.61,151.6,0.2]
[1752017317491,6.48115077,151.61,151.6,0.2]
[1752017318018,13.07702175,151.61,151.6,0.2]
[1752017320416,13.07534993,151.61,151.6,0.2]
[1752017325041,13.35967307,151.61,151.6,0.2]
[1752017325207,9.35084454,151.61,151.6,0.2]
[1752017325407,13.35967307,151.61,151.6,0.2]
[1752017326317,13.35676841,151.61,151.6,0.2]
[1752017328545,32.00641727,151.61,151.6,0.2]
[1752017328713,151.79315167,151.6,151.59,0.2]
[1752017328908,187.54089743,151.6,151.59,0.2]
[1752017332231,191.66945773,151.6,151.59,0.2]
[1752017332440,194.13359996,151.6,151.59,0.2]
[1752017335243,194.13257185,151.6,151.59,0.2]
[1752017337437,194.13257185,151.6,151.57,0.2]
[1752017337438,210.62333702,151.6,151.57,0.2]
[1752017337641,4.29315167,151.58,151.57,0.2]
[1752017337828,40.03626579,151.58,151.57,0.2]
[1752017338031,36.02743726,151.58,151.57,0.2]
[1752017338227,40.03626579,151.58,151.57,0.2]
[1752017339127,46.63344219,151.58,151.57,0.2]
[1752017340837,46.63249554,151.58,151.57,0.2]
[1752017343054,65.2821444,151.58,151.57,0.2]
[1752017344848,42.62366701,151.58,151.57,0.2]
[1752017345047,46.63249554,151.58,151.57,0.2]
[1752017346444,194.13249554,151.58,151.57,0.2]
[1752017346642,156.84366701,151.58,151.57,0.2]
[1752017346840,190.12366701,151.58,151.57,0.2]
[1752017347049,194.13249554,151.58,151.57,0.2]
[1752017347880,212.7821444,151.58,151.57,0.2]
[1752017348049,212.7821444,151.58,151.57,1e-08]
[1752017348249,166.433972,151.57,151.56,1e-08]
[1752017348466,181.82716147,151.57,151.56,1e-08]
[1752017348683,177.81833294,151.57,151.56,1e-08]
[1752017348852,191.79998626,151.57,151.56,1e-08]
[1752017349560,188.49641201,151.57,151.51,0.2]
[1752017349750,188.49641201,151.57,151.34,35.68225499]
[1752017350174,26.0,151.56,151.4,118.90297331]
[1752017350372,4.00882853,151.51,151.47,4.00882853]
[1752017350579,51.69354132,151.5,151.47,4.00882853]
[1752017350787,58.2945287,151.5,151.47,4.00882853]
[1752017350987,58.2945287,151.5,151.48,4.90842596]
[1752017351874,62.30335723,151.5,151.48,4.90842596]
[1752017352073,42.47957951,151.5,151.43,26.0]
[1752017352254,38.47075098,151.5,151.46,4.00882853]
[1752017352657,38.47075098,151.5,151.47,4.90695479]
[1752017352861,31.8697636,151.5,151.48,4.00882853]
[1752017353154,6.60036286,151.51,151.49,4.90682457]
[1752017353354,39.90036286,151.51,151.5,4.90549018]
[1752017353563,26.28432314,151.51,151.5,4.90548182]
[1752017354179,30.29315167,151.51,151.5,4.90548182]
[1752017354477,4.00882853,151.51,151.5,4.90548182]
[1752017355162,10.60943532,151.51,151.5,4.90548182]
[1752017355563,4.00882853,151.51,151.5,4.90548182]
[1752017356069,4.00882853,151.51,151.5,4.90606597]
[1752017356775,29.25908418,151.51,151.5,4.90606597]
[1752017357776,4.00882853,151.51,151.5,4.90606597]
[1752017358596,4.29315167,151.51,151.5,4.90606597]
[1752017359182,10.89375846,151.51,151.5,4.90606597]
[1752017359480,32.74276836,151.51,151.5,4.90606597]
[1752017359773,26.0,151.53,151.5,4.90606597]
[1752017359975,4.00882853,151.57,151.52,4.00882853]
[1752017360184,4.00882853,151.58,151.53,8.91303339]
[1752017360360,4.00882853,151.57,151.54,4.90420486]
[1752017360679,4.00882853,151.57,151.55,4.90420486]
[1752017360878,4.00882853,151.57,151.56,4.90420486]